fUST/lending_fUST_20260514
["ID","MTS","AMOUNT","RATE_DAILY","PERIOD"]
[422205227,1778692246000,-871.49,0.00011232,2]
[422205229,1778692246000,-530.38,0.00011232,2]
[422205238,1778692246000,-500.0,0.00011232,2]
[422205237,1778692246000,-500.0,0.00011232,2]
[422205230,1778692246000,-1854.76,0.00011232,2]
[422205233,1778692246000,-1014.89,0.00011232,2]
[422205234,1778692246000,-1553.5,0.00011232,2]
[422205232,1778692246000,-18210.46,0.00011232,2]
[422205231,1778692246000,-533.26,0.00011232,2]
[422205235,1778692246000,-3333.5,0.00011232,2]
[422205236,1778692246000,-500.0,0.00011232,2]
[422205249,1778692246000,-3151.6,0.00011232,2]
[422205250,1778692246000,-2534.18,0.00011232,2]
[422205251,1778692246000,-1503.89,0.00011232,2]
[422205240,1778692246000,-511.71,0.00011232,2]
[422205242,1778692246000,-1314.69,0.00011232,2]
[422205245,1778692246000,-1222.55,0.00011232,2]
[422205241,1778692246000,-500.0,0.00011232,2]
[422205247,1778692246000,-500.0,0.00011232,2]
[422205246,1778692246000,-1604.7,0.00011232,2]
[422205248,1778692246000,-1573.59,0.00011232,2]
[422205243,1778692246000,-510.29,0.00011232,2]
[422205253,1778692246000,-858.55,0.00011232,2]
[422205252,1778692246000,-2477.12,0.00011232,2]
[422205255,1778692246000,-500.0,0.00011232,2]
[422205278,1778692246000,-762.81,0.00011506,2]
[422205309,1778692246000,-1059.63,0.00011506,2]
[422205279,1778692246000,-500.0,0.00011506,2]
[422205318,1778692246000,-530.38,0.00011506,2]
[422205316,1778692246000,-871.49,0.00011506,2]
[422205325,1778692246000,-500.0,0.00011506,2]
[422205321,1778692246000,-18210.46,0.00011506,2]
[422205324,1778692246000,-3333.5,0.00011506,2]
[422205319,1778692246000,-1854.76,0.00011506,2]
[422205326,1778692246000,-500.0,0.00011506,2]
[422205327,1778692246000,-500.0,0.00011506,2]
[422205338,1778692246000,-2534.18,0.00011506,2]
[422205330,1778692246000,-500.0,0.00011506,2]
[422205328,1778692246000,-1283.56,0.00011506,2]
[422205337,1778692246000,-3151.6,0.00011506,2]
[422205314,1778692246000,-689.09,0.00011506,2]
[422205329,1778692246000,-511.71,0.00011506,2]
[422205331,1778692246000,-1314.69,0.00011506,2]
[422205332,1778692246000,-510.29,0.00011506,2]
[422205336,1778692246000,-1573.59,0.00011506,2]
[422205333,1778692246000,-1222.55,0.00011506,2]
[422205334,1778692246000,-1604.7,0.00011506,2]
[422205339,1778692246000,-1503.89,0.00011506,2]
[422205341,1778692246000,-858.55,0.00011506,2]
[422205342,1778692246000,-500.0,0.00011506,2]
[422205343,1778692246000,-500.0,0.00011506,2]
[422205344,1778692246000,-1203.42,0.00011506,2]
[422205345,1778692246000,-500.0,0.00011506,2]
[422205340,1778692246000,-2477.12,0.00011506,2]
[422205281,1778692246000,-500.0,0.00011506,2]
[422205322,1778692246000,-1014.89,0.00011506,2]
[422205335,1778692246000,-500.0,0.00011506,2]
[422205323,1778692246000,-1553.5,0.00011506,2]
[422205320,1778692246000,-533.26,0.00011506,2]
[422205287,1778692246000,-947.03,0.00011506,2]
[422205288,1778692246000,-1762.26,0.00011506,2]
[422205289,1778692246000,-1097.25,0.00011506,2]
[422205291,1778692246000,-506.91,0.00011506,2]
[422205290,1778692246000,-2526.42,0.00011506,2]
[422205292,1778692246000,-500.0,0.00011506,2]
[422205294,1778692246000,-831.6,0.00011506,2]
[422205295,1778692246000,-545.03,0.00011506,2]
[422205293,1778692246000,-671.23,0.00011506,2]
[422205299,1778692246000,-500.0,0.00011506,2]
[422205297,1778692246000,-1149.19,0.00011506,2]
[422205298,1778692246000,-501.37,0.00011506,2]
[422205296,1778692246000,-875.59,0.00011506,2]
[422205300,1778692246000,-500.0,0.00011506,2]
[422205317,1778692246000,-500.0,0.00011506,2]
[422205308,1778692246000,-500.0,0.00011506,2]
[422205315,1778692246000,-1170.69,0.00011506,2]
[422205306,1778692246000,-952.2,0.00011506,2]
[422205313,1778692246000,-2401.01,0.00011506,2]
[422205307,1778692246000,-3035.03,0.00011506,2]
[422205305,1778692246000,-967.88,0.00011506,2]
[422205310,1778692246000,-2191.62,0.00011506,2]
[422205302,1778692246000,-954.71,0.00011506,2]
[422205312,1778692246000,-500.0,0.00011506,2]
[422205304,1778692246000,-1929.47,0.00011506,2]
[422205311,1778692246000,-827.47,0.00011506,2]
[422205367,1778692247000,-762.81,0.0001178,2]
[422205360,1778692247000,-500.0,0.0001178,2]
[422205357,1778692247000,-511.39,0.0001178,2]
[422205364,1778692247000,-500.0,0.0001178,2]
[422205371,1778692247000,-561.87,0.0001178,2]
[422205363,1778692247000,-1088.15,0.0001178,2]
[422205369,1778692247000,-1113.99,0.0001178,2]
[422205378,1778692247000,-1097.25,0.0001178,2]
[422205380,1778692247000,-506.91,0.0001178,2]
[422205382,1778692247000,-671.23,0.0001178,2]
[422205379,1778692247000,-2526.42,0.0001178,2]
[422205381,1778692247000,-500.0,0.0001178,2]
[422205366,1778692247000,-500.0,0.0001178,2]
[422205370,1778692247000,-500.0,0.0001178,2]
[422205365,1778692247000,-611.0,0.0001178,2]
[422205349,1778692247000,-483.14626477,0.00011561,2]
[422205362,1778692247000,-500.0,0.0001178,2]
[422205359,1778692247000,-509.25,0.0001178,2]
[422205358,1778692247000,-500.0,0.0001178,2]
[422205368,1778692247000,-500.0,0.0001178,2]
[422205355,1778692247000,-500.0,0.0001178,2]
[422205354,1778692247000,-191.40468866,0.0001176,2]
[422205356,1778692247000,-522.61,0.0001178,2]
[422205353,1778692247000,-1495.31315048,0.000117,2]
[422205350,1778692247000,-1495.31315048,0.000116,2]
[422205351,1778692247000,-160.0,0.00011622,3]
[422205352,1778692247000,-154.0,0.00011652,21]
[422205348,1778692247000,-259.09747138,0.00011507,3]
[422205347,1778692247000,-704.65,0.00011506,2]
[422205346,1778692247000,-500.0,0.00011506,2]
[422205361,1778692247000,-585.01681525,0.0001178,2]
[422205376,1778692247000,-1762.26,0.0001178,2]
[422205395,1778692247000,-500.0,0.0001178,2]
[422205372,1778692247000,-546.52,0.0001178,2]
[422205375,1778692247000,-947.03,0.0001178,2]
[422205410,1778692247000,-1854.76,0.0001178,2]
[422205411,1778692247000,-533.26,0.0001178,2]
[422205405,1778692247000,-689.09,0.0001178,2]
[422205408,1778692247000,-500.0,0.0001178,2]
[422205407,1778692247000,-871.49,0.0001178,2]
[422205412,1778692247000,-11794.40677388,0.0001178,2]
[422205406,1778692247000,-1170.69,0.0001178,2]
[422205404,1778692247000,-1781.07378001,0.0001178,2]
[422205402,1778692247000,-1427.88822615,0.00010197,2]
[422205403,1778692247000,-225.12284887,0.0001178,2]
[422205396,1778692247000,-1059.63,0.0001178,2]
[422205400,1778692247000,-500.0,0.0001178,2]
[422205398,1778692247000,-139.73341162,0.0001178,2]
[422205399,1778692247000,-687.73658838,0.0001178,2]
[422205409,1778692247000,-530.38,0.0001178,2]
[422205397,1778692247000,-2191.62,0.0001178,2]
[422205373,1778692247000,-500.0,0.0001178,2]
[422205383,1778692247000,-831.6,0.0001178,2]
[422205384,1778692247000,-545.03,0.0001178,2]
[422205389,1778692247000,-500.0,0.0001178,2]
[422205393,1778692247000,-952.2,0.0001178,2]
[422205374,1778692247000,-607.63,0.0001178,2]
[422205385,1778692247000,-875.59,0.0001178,2]
[422205390,1778692247000,-954.71,0.0001178,2]
[422205388,1778692247000,-500.0,0.0001178,2]
[422205387,1778692247000,-501.37,0.0001178,2]
[422205391,1778692247000,-1929.47,0.0001178,2]
[422205392,1778692247000,-967.88,0.0001178,2]
[422205394,1778692247000,-3035.03,0.0001178,2]
[422205386,1778692247000,-1149.19,0.0001178,2]
[422205401,1778692247000,-394.81337112,0.0001178,2]
[422205413,1778692248000,-6416.05322612,0.0001178,2]
[422205414,1778692248000,-1014.89,0.0001178,2]
[422205417,1778692248000,-528.79904169,0.0001178,2]
[422205416,1778692248000,-1113.88302908,0.0001178,2]
[422205415,1778692248000,-1553.5,0.0001178,2]
[422205419,1778692387000,152.0,0.00013912,30]
[422205423,1778692847000,152.0,0.00013835,30]
[422205426,1778693082000,21624.0,0.00014,30]
[422205477,1778693432000,-300.0,9.754e-05,2]
[422205467,1778693432000,-300.0,9.754e-05,2]
[422205465,1778693432000,-300.0,9.754e-05,2]
[422205463,1778693432000,-300.0,9.754e-05,2]
[422205460,1778693432000,-300.0,9.754e-05,2]
[422205450,1778693432000,-5000.0,8.562e-05,2]
[422205454,1778693432000,-333.90465733,8.867e-05,2]
[422205458,1778693432000,-201.51,9.006e-05,7]
[422205448,1778693432000,-5000.0,8.476e-05,2]
[422205456,1778693432000,-200.0,9.006e-05,2]
[422205481,1778693432000,-300.0,9.754e-05,2]
[422205452,1778693432000,-1039.0,8.647e-05,2]
[422205483,1778693432000,-300.0,9.754e-05,2]
[422205487,1778693432000,-300.0,9.754e-05,2]
[422205473,1778693432000,-300.0,9.754e-05,2]
[422205500,1778693432000,-160.0,0.00010768,2]
[422205502,1778693432000,-162.12259004,0.000108,2]
[422205507,1778693432000,-739.92322633,0.00010856,2]
[422205494,1778693432000,-161.63868993,0.00010768,2]
[422205496,1778693432000,-160.0,0.00010768,2]
[422205505,1778693432000,-136.94004006,0.000108,2]
[422205498,1778693432000,-160.0,0.00010768,2]
[422205490,1778693432000,-300.0,9.754e-05,2]
[422205485,1778693432000,-300.0,9.754e-05,2]
[422205471,1778693432000,-300.0,9.754e-05,2]
[422205475,1778693432000,-300.0,9.754e-05,2]
[422205492,1778693432000,-300.0,9.754e-05,2]
[422205469,1778693432000,-300.0,9.754e-05,2]
[422205706,1778693438000,-500.0,0.00010857,2]
[422205662,1778693438000,-1268.88875421,0.00010856,2]
[422205684,1778693438000,-2201.66351195,0.00010856,2]
[422205701,1778693438000,-500.0,0.00010857,2]
[422205693,1778693438000,-745.52450751,0.00010856,2]
[422205703,1778693438000,-500.0,0.00010857,2]
[422205708,1778693438000,-500.0,0.00010857,2]
[422205697,1778693438000,-500.0,0.00010857,2]
[422205695,1778693438000,-500.0,0.00010857,2]
[422205710,1778693438000,-500.0,0.00010857,2]
[422205712,1778693438000,-500.0,0.00010857,2]
[422205714,1778693438000,-500.0,0.00010857,2]
[422205718,1778693438000,-90.99945344,0.00010857,2]
[422205716,1778693438000,-500.0,0.00010857,2]
[422205699,1778693438000,-186.3016367,0.00010857,2]
[422205967,1778693440000,-522.68557132,0.00010857,2]
[422205969,1778693440000,-788.73248404,0.00010857,2]
[422205965,1778693440000,-409.00054656,0.00010857,2]
[422205971,1778693440000,-788.73248404,0.00010857,2]
[422205973,1778693440000,-788.73248404,0.00010857,2]
[422205996,1778693441000,-239.92385599,0.00010857,2]
[422205975,1778693441000,-788.73248404,0.00010857,2]
[422205985,1778693441000,-466.47165594,0.00010857,2]
[422205981,1778693441000,-788.73248404,0.00010857,2]
[422205983,1778693441000,-322.2608281,0.00010857,2]
[422205979,1778693441000,-788.73248404,0.00010857,2]
[422205977,1778693441000,-788.73248404,0.00010857,2]
[422205987,1778693441000,-788.73248404,0.00010857,2]
[422205991,1778693441000,-164.77512705,0.00010857,2]
[422205998,1778693441000,-318.07614401,0.00010857,2]
[422205993,1778693441000,-384.033501,0.00010857,2]
[422206002,1778693441000,-105.857599,0.00010857,2]
[422206012,1778693441000,-975.0,0.00010858,2]
[422206000,1778693441000,-604.80827533,0.00010857,2]
[422206004,1778693441000,-817.02682034,0.00010857,2]
[422206010,1778693441000,-12370.82557647,0.00010858,2]
[422206006,1778693441000,-922.88441934,0.00010857,2]
[422206008,1778693441000,-27708.28955318,0.00010858,2]
[422205989,1778693441000,-788.73248404,0.00010857,2]
[422206350,1778693444000,-695.7,0.00010749,2]
[422206352,1778693444000,-620.51122382,0.00010749,2]
[422206377,1778693444000,-1909.34647797,0.00010749,2]
[422206381,1778693444000,-14036.09165406,0.00010858,2]
[422206386,1778693444000,-3713.26041875,0.00010858,2]
[422206380,1778693444000,-1774.44229821,0.00010749,2]
[422206396,1778693444000,-6926.84326751,0.00010858,2]
[422206389,1778693444000,-2125.38560048,0.00010858,2]
[422206384,1778693444000,-11317.58831437,0.00010858,2]
[422206392,1778693444000,-1826.76949531,0.00010858,2]
[422206399,1778693444000,-6035.67688669,0.00010858,2]
[422206394,1778693444000,-1324.17607391,0.00010858,2]
[422206723,1778693447000,-585.22942909,0.00010858,2]
[422206724,1778693447000,-799.65154018,0.00010858,2]
[422206722,1778693447000,-6310.64888033,0.00010858,2]
[422206721,1778693447000,-3227.303843,0.00010858,2]
[422206719,1778693447000,-45579.16526797,0.00010858,2]
[422206720,1778693447000,-196136.09217495,0.00010858,2]
[422206821,1778694632000,-318.15688774,8.588e-05,2]
[422206819,1778694632000,-370.09191692,8.502e-05,2]
[422206813,1778694632000,-4629.90808308,8.502e-05,2]
[422206899,1778694638000,-2340.4442711,8.588e-05,2]
[422206901,1778694638000,-1200.0,8.907e-05,2]
[422206902,1778694638000,-339.27860198,8.908e-05,2]
[422206900,1778694638000,-200.0,8.675e-05,2]
[422206932,1778694639000,-900.0,0.0001,2]
[422206931,1778694639000,-2134.45915457,9.977e-05,2]
[422206935,1778694639000,-2547.11996467,0.00010177,2]
[422206933,1778694639000,-413.0,0.00010035,2]
[422206957,1778694639000,-325.8780424,0.00010856,2]
[422206934,1778694639000,-300.0,0.00010035,2]
[422206937,1778694639000,-1138.7,0.00010296,2]
[422206936,1778694639000,-2713.83637348,0.00010277,2]
[422206939,1778694639000,-1125978.79091368,0.00010296,2]
[422206941,1778694639000,-376314.20331359,0.00010296,2]
[422206938,1778694639000,-146196.33137585,0.00010296,2]
[422206940,1778694639000,-51510.67439688,0.00010296,2]
[422206943,1778694639000,-155.41690723,0.000103,2]
[422206942,1778694639000,-152.07665838,0.000103,2]
[422206954,1778694639000,-160.0,0.00010778,2]
[422206946,1778694639000,-720.0,0.00010439,2]
[422206944,1778694639000,-156.38611656,0.000103,2]
[422206945,1778694639000,-2880.55278228,0.00010377,2]
[422206950,1778694639000,-3509.07641801,0.00010777,2]
[422206949,1778694639000,-3214.95989751,0.00010677,2]
[422206948,1778694639000,-3180.00873908,0.00010577,2]
[422206951,1778694639000,-161.63868993,0.00010778,2]
[422206947,1778694639000,-3048.1904756,0.00010477,2]
[422206952,1778694639000,-160.0,0.00010778,2]
[422206956,1778694639000,-239.25010408,0.000108,2]
[422206953,1778694639000,-160.0,0.00010778,2]
[422206928,1778694639000,-300.0,9.793e-05,2]
[422206913,1778694639000,-300.0,9.305e-05,2]
[422206924,1778694639000,-300.0,9.305e-05,2]
[422206959,1778694639000,-3056.9794136,0.00010856,2]
[422206905,1778694639000,-1434.58927707,9.122e-05,2]
[422206903,1778694639000,-152.0,9.008e-05,7]
[422206907,1778694639000,-300.0,9.122e-05,2]
[422206904,1778694639000,-152.0,9.008e-05,7]
[422206909,1778694639000,-300.0,9.122e-05,2]
[422206908,1778694639000,-300.0,9.122e-05,2]
[422206906,1778694639000,-1328.57883902,9.122e-05,2]
[422206911,1778694639000,-5743.6393664,9.123e-05,2]
[422206912,1778694639000,-300.0,9.305e-05,2]
[422206910,1778694639000,-300.0,9.122e-05,2]
[422206917,1778694639000,-300.0,9.305e-05,2]
[422206915,1778694639000,-300.0,9.305e-05,2]
[422206914,1778694639000,-300.0,9.305e-05,2]
[422206916,1778694639000,-300.0,9.305e-05,2]
[422206918,1778694639000,-300.0,9.305e-05,2]
[422206920,1778694639000,-300.0,9.305e-05,2]
[422206921,1778694639000,-300.0,9.305e-05,2]
[422206930,1778694639000,-1088.90957006,9.877e-05,2]
[422206922,1778694639000,-300.0,9.305e-05,2]
[422206919,1778694639000,-300.0,9.305e-05,2]
[422206923,1778694639000,-300.0,9.305e-05,2]
[422206927,1778694639000,-600.0,9.49e-05,2]
[422206925,1778694639000,-300.0,9.305e-05,2]
[422206929,1778694639000,-1200.0,9.798e-05,2]
[422206926,1778694639000,-300.0,9.305e-05,2]
[422206963,1778694639000,-1811.6718,0.00010958,2]
[422207000,1778694639000,-500.0,0.00010958,2]
[422206958,1778694639000,-2094.1714786,0.00010856,2]
[422206991,1778694639000,-635.68,0.00010958,2]
[422207001,1778694639000,-1052.99,0.00010958,2]
[422206999,1778694639000,-500.0,0.00010958,2]
[422206997,1778694639000,-1315.9,0.00010958,2]
[422206998,1778694639000,-789.19,0.00010958,2]
[422206992,1778694639000,-928.32,0.00010958,2]
[422206996,1778694639000,-500.0,0.00010958,2]
[422206994,1778694639000,-500.0,0.00010958,2]
[422206995,1778694639000,-500.0,0.00010958,2]
[422206993,1778694639000,-500.0,0.00010958,2]
[422207002,1778694639000,-616.57,0.00010958,2]
[422207004,1778694639000,-1468.55,0.00010958,2]
[422207006,1778694639000,-2105.35,0.00010958,2]
[422207005,1778694639000,-500.0,0.00010958,2]
[422207010,1778694639000,-914.38,0.00010958,2]
[422207007,1778694639000,-500.0,0.00010958,2]
[422207009,1778694639000,-500.0,0.00010958,2]
[422207011,1778694639000,-795.6,0.00010958,2]
[422207012,1778694639000,-500.0,0.00010958,2]
[422207014,1778694639000,-793.5,0.00010958,2]
[422207013,1778694639000,-500.0,0.00010958,2]
[422207008,1778694639000,-559.36,0.00010958,2]
[422207016,1778694639000,-693.0,0.00010958,2]
[422207015,1778694639000,-957.66,0.00010958,2]
[422206962,1778694639000,-400.34875033,0.00010908,2]
[422206989,1778694639000,-906.79,0.00010958,2]
[422206990,1778694639000,-500.0,0.00010958,2]
[422207003,1778694639000,-729.66,0.00010958,2]
[422206987,1778694639000,-500.0,0.00010958,2]
[422206960,1778694639000,-727.8446095,0.00010856,2]
[422206980,1778694639000,-500.0,0.00010958,2]
[422206955,1778694639000,-500.0,0.00010778,2]
[422206961,1778694639000,-239.25010408,0.000109,2]
[422206965,1778694639000,-506.36,0.00010958,2]
[422206964,1778694639000,-500.0,0.00010958,2]
[422206970,1778694639000,-500.0,0.00010958,2]
[422206978,1778694639000,-500.0,0.00010958,2]
[422206971,1778694639000,-500.0,0.00010958,2]
[422206973,1778694639000,-500.0,0.00010958,2]
[422206977,1778694639000,-749.38,0.00010958,2]
[422206967,1778694639000,-500.0,0.00010958,2]
[422206966,1778694639000,-500.0,0.00010958,2]
[422206969,1778694639000,-500.0,0.00010958,2]
[422206968,1778694639000,-623.51,0.00010958,2]
[422206985,1778694639000,-500.0,0.00010958,2]
[422206986,1778694639000,-626.54,0.00010958,2]
[422206981,1778694639000,-1015.08,0.00010958,2]
[422206984,1778694639000,-500.0,0.00010958,2]
[422206983,1778694639000,-500.0,0.00010958,2]
[422206982,1778694639000,-500.0,0.00010958,2]
[422206988,1778694639000,-500.0,0.00010958,2]
[422206975,1778694639000,-500.0,0.00010958,2]
[422206974,1778694639000,-500.0,0.00010958,2]
[422206976,1778694639000,-500.0,0.00010958,2]
[422206972,1778694639000,-500.0,0.00010958,2]
[422206979,1778694639000,-500.0,0.00010958,2]
[422207064,1778694640000,-500.0,0.00011232,2]
[422207066,1778694640000,-500.0,0.00011232,2]
[422207065,1778694640000,-506.36,0.00011232,2]
[422207061,1778694640000,-239.25010408,0.000112,2]
[422207058,1778694640000,-4861.39205047,0.00011077,2]
[422207062,1778694640000,-515.45135744,0.0001123,2]
[422207055,1778694640000,-169.0,0.00010959,3]
[422207059,1778694640000,-239.25010408,0.000111,2]
[422207050,1778694640000,-2757.65,0.00010958,2]
[422207052,1778694640000,-1376.89,0.00010958,2]
[422207048,1778694640000,-500.0,0.00010958,2]
[422207051,1778694640000,-2167.48,0.00010958,2]
[422207057,1778694640000,-239.25010408,0.00011,2]
[422207063,1778694640000,-1811.6718,0.00011232,2]
[422207068,1778694640000,-623.51,0.00011232,2]
[422207067,1778694640000,-500.0,0.00011232,2]
[422207079,1778694640000,-500.0,0.00011232,2]
[422207075,1778694640000,-500.0,0.00011232,2]
[422207070,1778694640000,-500.0,0.00011232,2]
[422207074,1778694640000,-500.0,0.00011232,2]
[422207078,1778694640000,-500.0,0.00011232,2]
[422207069,1778694640000,-500.0,0.00011232,2]
[422207072,1778694640000,-500.0,0.00011232,2]
[422207077,1778694640000,-749.38,0.00011232,2]
[422207073,1778694640000,-500.0,0.00011232,2]
[422207071,1778694640000,-500.0,0.00011232,2]
[422207076,1778694640000,-500.0,0.00011232,2]
[422207049,1778694640000,-1069.73,0.00010958,2]
[422207056,1778694640000,-4225.55832359,0.00010977,2]
[422207047,1778694640000,-500.0,0.00010958,2]
[422207027,1778694640000,-1545.63,0.00010958,2]
[422207044,1778694640000,-1150.35,0.00010958,2]
[422207081,1778694640000,-500.0,0.00011232,2]
[422207026,1778694640000,-500.0,0.00010958,2]
[422207020,1778694640000,-1607.89,0.00010958,2]
[422207017,1778694640000,-2529.19,0.00010958,2]
[422207019,1778694640000,-500.0,0.00010958,2]
[422207025,1778694640000,-883.03,0.00010958,2]
[422207018,1778694640000,-1826.35,0.00010958,2]
[422207022,1778694640000,-806.57,0.00010958,2]
[422207024,1778694640000,-689.56,0.00010958,2]
[422207023,1778694640000,-500.0,0.00010958,2]
[422207021,1778694640000,-509.17,0.00010958,2]
[422207030,1778694640000,-726.25,0.00010958,2]
[422207041,1778694640000,-1404.11,0.00010958,2]
[422207031,1778694640000,-975.57,0.00010958,2]
[422207028,1778694640000,-2010.22,0.00010958,2]
[422207029,1778694640000,-500.0,0.00010958,2]
[422207040,1778694640000,-845.74,0.00010958,2]
[422207039,1778694640000,-1294.58,0.00010958,2]
[422207034,1778694640000,-15175.38,0.00010958,2]
[422207036,1778694640000,-1123.12,0.00010958,2]
[422207032,1778694640000,-574.24,0.00010958,2]
[422207035,1778694640000,-500.0,0.00010958,2]
[422207038,1778694640000,-2848.37,0.00010958,2]
[422207037,1778694640000,-837.24,0.00010958,2]
[422207043,1778694640000,-2217.41,0.00010958,2]
[422207042,1778694640000,-500.0,0.00010958,2]
[422207054,1778694640000,-155.90676848,0.00010958,2]
[422207053,1778694640000,-751.24,0.00010958,2]
[422207045,1778694640000,-1275.3,0.00010958,2]
[422207046,1778694640000,-500.0,0.00010958,2]
[422207090,1778694640000,-626.54,0.00011232,2]
[422207060,1778694640000,-5271.1079081,0.00011177,2]
[422207094,1778694640000,-500.0,0.00011232,2]
[422207114,1778694640000,-559.36,0.00011232,2]
[422207121,1778694640000,-693.0,0.00011232,2]
[422207123,1778694640000,-2529.19,0.00011232,2]
[422207127,1778694640000,-509.17,0.00011232,2]
[422207137,1778694640000,-975.57,0.00011232,2]
[422207138,1778694640000,-574.24,0.00011232,2]
[422207128,1778694640000,-806.57,0.00011232,2]
[422207129,1778694640000,-512.1711011,0.00011232,2]
[422207126,1778694640000,-1607.89,0.00011232,2]
[422207133,1778694640000,-1545.63,0.00011232,2]
[422207130,1778694640000,-689.56,0.00011232,2]
[422207134,1778694640000,-2010.22,0.00011232,2]
[422207136,1778694640000,-726.25,0.00011232,2]
[422207131,1778694640000,-883.03,0.00011232,2]
[422207132,1778694640000,-500.0,0.00011232,2]
[422207135,1778694640000,-500.0,0.00011232,2]
[422207139,1778694640000,-15175.38,0.00011232,2]
[422207149,1778694640000,-1150.35,0.00011232,2]
[422207141,1778694640000,-1123.12,0.00011232,2]
[422207142,1778694640000,-837.24,0.00011232,2]
[422207150,1778694640000,-1275.3,0.00011232,2]
[422207144,1778694640000,-1294.58,0.00011232,2]
[422207143,1778694640000,-2848.37,0.00011232,2]
[422207140,1778694640000,-500.0,0.00011232,2]
[422207151,1778694640000,-500.0,0.00011232,2]
[422207145,1778694640000,-845.74,0.00011232,2]
[422207148,1778694640000,-2217.41,0.00011232,2]
[422207146,1778694640000,-1404.11,0.00011232,2]
[422207092,1778694640000,-500.0,0.00011232,2]
[422207118,1778694640000,-500.0,0.00011232,2]
[422207119,1778694640000,-793.5,0.00011232,2]
[422207147,1778694640000,-500.0,0.00011232,2]
[422207124,1778694640000,-1826.35,0.00011232,2]
[422207116,1778694640000,-914.38,0.00011232,2]
[422207085,1778694640000,-500.0,0.00011232,2]
[422207096,1778694640000,-928.32,0.00011232,2]
[422207091,1778694640000,-500.0,0.00011232,2]
[422207093,1778694640000,-906.79,0.00011232,2]
[422207087,1778694640000,-500.0,0.00011232,2]
[422207088,1778694640000,-500.0,0.00011232,2]
[422207095,1778694640000,-635.68,0.00011232,2]
[422207089,1778694640000,-500.0,0.00011232,2]
[422207098,1778694640000,-500.0,0.00011232,2]
[422207097,1778694640000,-500.0,0.00011232,2]
[422207108,1778694640000,-616.57,0.00011232,2]
[422207110,1778694640000,-1468.55,0.00011232,2]
[422207099,1778694640000,-500.0,0.00011232,2]
[422207083,1778694640000,-1015.08,0.00011232,2]
[422207101,1778694640000,-500.0,0.00011232,2]
[422207120,1778694640000,-957.66,0.00011232,2]
[422207125,1778694640000,-500.0,0.00011232,2]
[422207117,1778694640000,-795.6,0.00011232,2]
[422207115,1778694640000,-500.0,0.00011232,2]
[422207103,1778694640000,-1315.9,0.00011232,2]
[422207107,1778694640000,-1052.99,0.00011232,2]
[422207113,1778694640000,-500.0,0.00011232,2]
[422207106,1778694640000,-500.0,0.00011232,2]
[422207112,1778694640000,-2105.35,0.00011232,2]
[422207111,1778694640000,-500.0,0.00011232,2]
[422207105,1778694640000,-500.0,0.00011232,2]
[422207109,1778694640000,-729.66,0.00011232,2]
[422207104,1778694640000,-789.19,0.00011232,2]
[422207152,1778694640000,-500.0,0.00011232,2]
[422207196,1778694641000,-500.0,0.00011506,2]
[422207197,1778694641000,-500.0,0.00011506,2]
[422207199,1778694641000,-789.19,0.00011506,2]
[422207192,1778694641000,-635.68,0.00011506,2]
[422207193,1778694641000,-928.32,0.00011506,2]
[422207184,1778694641000,-500.0,0.00011506,2]
[422207188,1778694641000,-500.0,0.00011506,2]